lending/lending_fUSD_20240219
["ID","MTS","AMOUNT","RATE_DAILY","PERIOD"]
[314444079,1708359044194,-151.0,0.00039761,14]
[314444080,1708359044204,-151.0,0.00039761,14]
[314444081,1708359044213,-151.0,0.00039761,14]
[314444082,1708359044226,-194.297002,0.00039761,14]
[314444083,1708359044235,-194.297002,0.00039761,14]
[314444084,1708359044244,-1063.007602,0.00039761,14]
[314444085,1708359044254,-1063.007602,0.00039761,14]
[314444086,1708359044264,-151.0,0.00039761,14]
[314444087,1708359044273,-151.0,0.00039761,7]
[314444088,1708359044282,-252.500329,0.00039761,7]
[314444089,1708359044291,-151.0,0.00039761,14]
[314444090,1708359044302,-151.0,0.00039761,14]
[314444091,1708359044312,-613.884693,0.00039761,14]
[314444092,1708359044323,-206.302716,0.00039761,14]
[314444093,1708359044332,-613.884693,0.00039761,14]
[314444094,1708359044341,-206.302716,0.00039761,14]
[314444095,1708359044350,-151.0,0.00039771,7]
[314444096,1708359044360,-151.0,0.00039771,7]
[314444097,1708359044369,-151.0,0.00039771,3]
[314444098,1708359044378,-730.675241,0.00039771,14]
[314444099,1708359044387,-326.260718,0.00039771,14]
[314444100,1708359044396,-730.675241,0.00039771,14]
[314444101,1708359044405,-326.260718,0.00039771,14]
[314444102,1708359044414,-570.825481,0.00039771,14]
[314444103,1708359044424,-591.922008,0.00039771,14]
[314444104,1708359044433,-570.825481,0.00039771,14]
[314444105,1708359044442,-591.922008,0.00039771,14]
[314444106,1708359044451,-1106.769852,0.00039771,14]
[314444107,1708359044460,-1106.769852,0.00039771,14]
[314444108,1708359044469,-276.708209,0.00039771,14]
[314444109,1708359044478,-276.708209,0.00039771,14]
[314444110,1708359044487,-151.0,0.00039771,14]
[314444111,1708359044497,-180.673012,0.00039771,14]
[314444112,1708359044506,-151.0,0.00039771,14]
[314444113,1708359044515,-180.673012,0.00039771,14]
[314444114,1708359044525,-151.0,0.00039771,14]
[314444115,1708359044534,-151.0,0.00039771,14]
[314444116,1708359044543,-152.860071,0.00039771,14]
[314444117,1708359044552,-151.0,0.00039771,14]
[314444118,1708359044561,-152.860071,0.00039771,14]
[314444119,1708359044570,-1845.736115,0.00039771,14]
[314444120,1708359044582,-1845.736115,0.00039771,14]
[314444121,1708359044592,-151.0,0.00039771,14]
[314444122,1708359044601,-151.0,0.00039771,14]
[314444123,1708359044610,-1477.837898,0.00039771,14]
[314444124,1708359044619,-1477.837898,0.00039771,14]
[314444125,1708359044629,-166.979665,0.00039771,14]
[314444126,1708359044638,-166.979665,0.00039771,14]
[314444127,1708359044647,-250.0,0.0003978,2]
[314444128,1708359044656,-53899.84916985,0.00039781,7]
[314444129,1708359044670,-296.75290567,0.00039781,7]
[314444130,1708359044713,-13.33834531,0.00039781,7]
[314444131,1708359044772,-36487.07565727,0.00039781,7]
[314444132,1708359044781,-212604.499533,0.00039781,7]
[314444133,1708359044790,-1254.98684293,0.00039781,2]
[314444134,1708359044799,-344.61627408,0.00039781,2]
[314444135,1708359044809,-4927.0,0.00039781,4]
[314444136,1708359044818,-151.0,0.00039781,14]
[314444137,1708359044829,-151.0,0.00039781,14]
[314444138,1708359044838,-253.188253,0.00039781,14]
[314444139,1708359044847,-151.0,0.00039781,14]
[314444140,1708359044856,-151.0,0.00039781,14]
[314444141,1708359044865,-151.0,0.00039781,14]
[314444142,1708359044874,-151.0,0.00039781,14]
[314444143,1708359044883,-318.962549,0.00039781,14]
[314444144,1708359044893,-318.962549,0.00039781,14]
[314444145,1708359044902,-151.0,0.00039781,7]
[314444146,1708359044911,-231.483065,0.00039781,14]
[314444147,1708359044920,-231.483065,0.00039781,14]
[314444148,1708359044929,-799.930369,0.00039781,14]
[314444149,1708359044938,-799.930369,0.00039781,14]
[314444150,1708359044948,-558.600375,0.00039781,14]
[314444151,1708359044957,-558.600375,0.00039781,14]
[314444152,1708359044966,-151.0,0.00039781,7]
[314444153,1708359044975,-1342.889476,0.00039781,14]
[314444154,1708359044985,-1342.889476,0.00039781,14]
[314444155,1708359044994,-542.891082,0.00039781,14]
[314444156,1708359045003,-542.891082,0.00039781,14]
[314444157,1708359045012,-151.0,0.00039781,14]
[314444158,1708359045021,-151.0,0.00039781,14]
[314444159,1708359045030,-151.0,0.00039781,14]
[314444160,1708359045038,-151.0,0.00039781,14]
[314444161,1708359045047,-151.0,0.00039781,14]
[314444162,1708359045056,-261.852761,0.00039781,14]
[314444163,1708359045066,-261.852761,0.00039781,14]
[314444164,1708359045076,-226.927356,0.00039781,2]
[314444165,1708359045085,-226.927356,0.00039781,2]
[314444166,1708359045094,-151.0,0.00039781,14]
[314444167,1708359045103,-209.315521,0.00039781,14]
[314444168,1708359045112,-209.315521,0.00039781,14]
[314444169,1708359045121,-151.0,0.00039781,14]
[314444170,1708359045130,-151.0,0.00039781,14]
[314444171,1708359045139,-151.0,0.00039781,14]
[314444172,1708359045148,-151.0,0.00039781,14]
[314444173,1708359045157,-151.0,0.00039781,14]
[314444174,1708359045166,-151.0,0.00039781,14]
[314444175,1708359045174,-151.0,0.00039781,14]
[314444176,1708359045183,-152.593119,0.00039781,14]
[314444177,1708359045192,-152.593119,0.00039781,14]
[314444178,1708359045201,-151.0,0.00039781,14]
[314444179,1708359045210,-151.0,0.00039781,14]
[314444180,1708359045222,-151.0,0.00039781,14]
[314444181,1708359045231,-151.0,0.00039781,14]
[314444182,1708359045241,-151.0,0.00039781,14]
[314444183,1708359045251,-194.297002,0.00039781,14]
[314444184,1708359045261,-194.297002,0.00039781,14]
[314444185,1708359045270,-1063.007602,0.00039781,14]
[314444186,1708359045280,-1063.007602,0.00039781,14]
[314444187,1708359045290,-151.0,0.00039781,14]
[314444188,1708359045301,-151.0,0.00039781,7]
[314444189,1708359045311,-151.0,0.00039781,14]
[314444190,1708359045320,-151.0,0.00039781,14]
[314444191,1708359045331,-151.0,0.00039781,14]
[314444192,1708359045340,-613.884693,0.00039781,14]
[314444193,1708359045349,-206.302716,0.00039781,14]
[314444194,1708359045358,-613.884693,0.00039781,14]
[314444195,1708359045367,-206.302716,0.00039781,14]
[314444196,1708359045376,-152.363426,0.00039781,14]
[314444197,1708359045386,-151.0,0.00039781,14]
[314444198,1708359045395,-152.363426,0.00039781,14]
[314444199,1708359045403,-151.0,0.00039781,14]
[314444200,1708359045414,-1550.397292,0.00039781,14]
[314444202,1708359045423,-1550.397292,0.00039781,14]
[314444204,1708359045433,-193.126947,0.00039781,14]
[314444205,1708359045443,-193.126947,0.00039781,14]
[314444206,1708359045452,-151.0,0.00039781,14]
[314444207,1708359045461,-210.619546,0.00039781,14]
[314444208,1708359045470,-210.619546,0.00039781,14]
[314444209,1708359045480,-5076.973276,0.00039781,14]
[314444211,1708359045489,-5076.973276,0.00039781,14]
[314444213,1708359045498,-6283.937834,0.00039781,14]
[314444215,1708359045508,-6283.937834,0.00039781,14]
[314444216,1708359045517,-151.0,0.00039781,14]
[314444217,1708359045526,-379.302491,0.00039781,14]
[314444218,1708359045535,-210.0,0.0003979,2]
[314444219,1708359045544,-5000.0,0.00039791,3]
[314444220,1708359045554,-151.0,0.00039791,14]
[314444221,1708359045563,-151.0,0.00039791,14]
[314444222,1708359045574,-151.0,0.00039791,14]
[314444223,1708359045582,-151.0,0.00039791,14]
[314444224,1708359045591,-152.860071,0.00039791,14]
[314444225,1708359045600,-151.0,0.00039791,14]
[314444226,1708359045609,-152.860071,0.00039791,14]
[314444227,1708359045618,-1845.736115,0.00039791,14]
[314444228,1708359045627,-1845.736115,0.00039791,14]
[314444229,1708359045636,-151.0,0.00039791,14]
[314444230,1708359045646,-151.0,0.00039791,14]
[314444231,1708359045655,-1477.837898,0.00039791,14]
[314444232,1708359045664,-1477.837898,0.00039791,14]
[314444233,1708359045673,-166.979665,0.00039791,14]
[314444234,1708359045683,-166.979665,0.00039791,14]
[314444235,1708359045692,-2162.7183006,0.000398,7]
[314444236,1708359045701,-1124.845011,0.000398,17]
[314444237,1708359045711,-1956.17067072,0.000398,2]
[314444238,1708359045720,-1000.0,0.0003982,17]
[314444239,1708359045730,-151.0,0.00039836,7]
[314444240,1708359045739,-262.258917,0.00039836,7]
[314444241,1708359045748,-151.0,0.00039836,3]
[314444242,1708359045758,-730.675241,0.00039836,14]
[314444243,1708359045767,-326.260718,0.00039836,14]
[314444244,1708359045776,-730.675241,0.00039836,14]
[314444245,1708359045785,-326.260718,0.00039836,14]
[314444246,1708359045794,-570.825481,0.00039836,14]
[314444247,1708359045803,-591.922008,0.00039836,14]
[314444248,1708359045813,-570.825481,0.00039836,14]
[314444249,1708359045823,-591.922008,0.00039836,14]
[314444250,1708359045833,-1106.769852,0.00039836,14]
[314444251,1708359045842,-1106.769852,0.00039836,14]
[314444252,1708359045851,-276.708209,0.00039836,14]
[314444253,1708359045861,-276.708209,0.00039836,14]
[314444254,1708359045870,-180.673012,0.00039836,14]
[314444255,1708359045879,-180.673012,0.00039836,14]
[314444256,1708359045888,-4501.90483276,0.00039836,13]
[314444257,1708359045898,-163.0,0.00039837,7]
[314444258,1708359045906,-1000.0,0.0003984,17]
[314444259,1708359045916,-1000.0,0.0003986,17]
[314444260,1708359045925,-661.9731803,0.0003987,9]
[314444261,1708359045935,-340.22828287,0.00039879,30]
[314444262,1708359045944,-1000.0,0.0003988,17]
[314444263,1708359045953,-151.0,0.00039881,14]
[314444264,1708359045962,-151.0,0.00039881,14]
[314444265,1708359045973,-282.0,0.00039881,14]
[314444266,1708359045982,-151.0,0.00039881,14]
[314444267,1708359045991,-151.0,0.00039881,14]
[314444268,1708359046000,-151.0,0.00039881,14]
[314444269,1708359046009,-300.0,0.00039899,2]
[314444270,1708359046019,-300.0,0.00039899,2]
[314444271,1708359046028,-300.0,0.00039899,2]
[314444272,1708359046037,-300.0,0.00039899,2]
[314444273,1708359046047,-300.0,0.00039899,2]
[314444274,1708359046056,-300.0,0.00039899,2]
[314444275,1708359046065,-300.0,0.00039899,2]
[314444276,1708359046074,-300.0,0.00039899,2]
[314444277,1708359046083,-300.0,0.00039899,2]
[314444278,1708359046093,-300.0,0.00039899,2]
[314444279,1708359046102,-189830.66189714,0.000399,3]
[314444280,1708359046764,-151.0,0.00039781,14]
[314444281,1708359046773,-311.6292584,0.00039781,14]
[314444282,1708359046785,-67.6732326,0.00039781,14]
[314444283,1708359046794,-10056.17653895,0.000399,3]
[314444284,1708359046813,-13655.257,0.000399,3]
[314444285,1708359046826,-2603.6,0.000399,3]
[314444286,1708359046838,-255.85470264,0.000399,3]
[314444287,1708359046849,-5213.9,0.000399,3]
[314444288,1708359046861,-5820.8,0.000399,3]
[314444289,1708359046876,-4358.87753032,0.000399,3]
[314444293,1708359970855,150.0,0.00016712,2]
[314444294,1708359970889,26.85,0.00016712,2]
[314444295,1708360032147,-535.40994288,0.00024899,2]
[314444296,1708360032166,-64.60041978,0.000249,2]
[314444297,1708360036122,-633.47088022,0.000249,2]
[314444298,1708360036141,-259.23788975,0.00024999,2]
[314444299,1708360036160,-550.0,0.00025,3]
[314444300,1708360036180,-600.0,0.00027,3]
[314444301,1708360036200,-650.0,0.00029,3]
[314444302,1708360036220,-700.0,0.00031,3]
[314444303,1708360036240,-172.78627763,0.000323,2]
[314444304,1708360036288,-150.0,0.00032398,3]
[314444305,1708360036309,-3989.91476028,0.00032399,4]
[314444312,1708360157096,-223.10371255,0.00032398,4]
[314444313,1708360157116,-3050.76450127,0.00032399,4]
[314444314,1708360161126,-7359.32073845,0.00032399,4]
[314444315,1708360161146,-1957.0,0.000324,2]
[314444316,1708360161165,-293.1586,0.000324,2]
[314444317,1708360161185,-499.99,0.000324,2]
[314444318,1708360161204,-12422.0,0.000325,2]
[314444319,1708360161224,-3059.37,0.000325,2]
[314444320,1708360161245,-172.78627761,0.00033798,2]
[314444321,1708360161266,-413.37,0.00034773,2]
[314444322,1708360161286,-172.78627761,0.00035296,2]
[314444323,1708360161306,-719.36076778,0.00035808,4]
[314444324,1708360161326,-188.4559,0.00035809,2]
[314444325,1708360161345,-1987.32,0.00035909,2]
[314444326,1708360161365,-1000.0,0.00035909,2]
[314444327,1708360161384,-360.43720995,0.0003591,7]
[314444328,1708360161404,-5196.6,0.0003591,2]
[314444331,1708360179901,360.43720995,0.0003,2]
[314444334,1708360198015,360.43720995,0.00032319,2]
[314444335,1708360220742,406.08181871,0.00034627,7]
[314444336,1708360221911,360.43720995,0.00032319,2]
[314444341,1708360231800,-250.0,0.00036558,2]
[314444342,1708360231811,-107.38185292,0.00036684,3]
[314444343,1708360231824,-175.61814708,0.00036684,3]
[314444344,1708360231834,-625.83,0.00036685,2]
[314444345,1708360231845,-1144.23,0.00036685,2]
[314444346,1708360231855,-2000.0,0.00036685,2]
[314444347,1708360231866,-172.78627761,0.00036794,2]
[314444348,1708360231876,-373.0,0.00036854,2]
[314444349,1708360231886,-177.98,0.00036876,2]
[314444350,1708360231897,-23900.0,0.00036876,2]
[314444351,1708360231907,-284.07,0.0003696,2]
[314444352,1708360231918,-330.1141835,0.00037,38]
[314444353,1708360231927,-780.0,0.00037,7]
[314444354,1708360231937,-413.37,0.00037037,2]
[314444355,1708360231951,-386.00508691,0.00037161,2]
[314444356,1708360231978,-113.99491309,0.00037161,2]
[314444357,1708360231988,-413.74,0.00037234,2]
[314444358,1708360231997,-153.22,0.0003732,2]
[314444359,1708360232008,-500.0,0.00037392,2]
[314444360,1708360232018,-207.61,0.00037968,2]
[314444361,1708360232027,-337.00752066,0.00037968,2]
[314444362,1708360232040,-269.59121782,0.00037968,2]
[314444363,1708360232053,-251.01126152,0.00037968,2]
[314444364,1708360232063,-300.0,0.00038,39]
[314444365,1708360232073,-5249.86,0.00038,30]
[314444366,1708360232083,-150.01,0.0003804,120]
[314444367,1708360232094,-156.85,0.00038084,2]
[314444368,1708360232103,-172.78627761,0.00038292,2]
[314444369,1708360232117,-245.1,0.00038356,15]
[314444370,1708360232126,-150.0,0.00038356,2]
[314444371,1708360232135,-698.91061613,0.00038376,8]
[314444372,1708360232145,-553.94304737,0.00038376,2]
[314444373,1708360232154,-25163.48506375,0.00038474,4]
[314444374,1708360232163,-223.10371255,0.00038475,4]
[314444375,1708360232173,-719.36076778,0.00038475,4]
[314444376,1708360232182,-9600.0,0.00038475,4]
[314444377,1708360232191,-10427.61552459,0.00038475,2]
[314444378,1708360232201,-207.3409,0.00038476,2]
[314444379,1708360232211,-60033.38466358,0.00038476,2]
[314444380,1708360232228,-1137.75498811,0.00038476,2]
[314444381,1708360232240,-3777.98227875,0.00038476,2]
[314444382,1708360232252,-17052.49136254,0.00038476,2]
[314444383,1708360234398,-337.10642534,0.00038474,2]
[314444386,1708360234587,-221.74340318,0.00038474,2]
[314444388,1708360234596,-4982.86398526,0.00038476,2]
[314444390,1708360234609,-4165.10029272,0.00038476,2]
[314444393,1708360234622,-278.26808799,0.00038476,2]
[314444397,1708360234644,-1038.83978,0.00038476,2]
[314444427,1708360237891,-588.9549408,0.00036557,4]
[314444428,1708360237929,-130.40582698,0.00036557,4]
[314444429,1708360237939,-3017.93262265,0.00038476,2]
[314444430,1708360237951,-4995.28537903,0.00038476,2]
[314444431,1708360237963,-2017.00267295,0.00038476,2]
[314444436,1708360239734,-2004.7,0.00038476,2]
[314444437,1708360239795,-15280.12424602,0.00038476,2]
[314444438,1708360239806,-26736.61906205,0.00038476,2]
[314444439,1708360239868,187.97964846,0.0003,2]
[314444440,1708360239880,-1987.09758906,0.00038476,2]
[314444441,1708360239929,-122590.96238929,0.00038476,2]
[314444442,1708360239939,-252.9129,0.00038476,2]
[314444443,1708360239948,-156.85,0.0003856,2]
[314444444,1708360239958,-15188.14459055,0.00038576,14]
[314444445,1708360239968,-3967.90277428,0.00038576,14]
[314444446,1708360239977,-1724.78015506,0.00038576,14]
[314444448,1708360239987,-698.91061611,0.00038671,9]
[314444450,1708360239997,-1038.0,0.00038746,2]
[314444453,1708360240006,-842.0,0.00038746,2]
[314444455,1708360240016,-953.0,0.00038746,2]
[314444457,1708360240025,-9950.9261,0.000388,2]
[314444459,1708360240035,-553.94304737,0.00038846,2]
[314444461,1708360240044,-200.0,0.00038888,4]
[314444463,1708360240053,-300.0,0.000389,12]
[314444465,1708360240063,-185.93705092,0.000389,2]
[314444467,1708360240072,-185.93705076,0.000389,2]
[314444469,1708360240082,-185.93705076,0.000389,2]
[314444471,1708360240092,-185.93705076,0.000389,2]
[314444473,1708360240101,-185.93705076,0.000389,2]
[314444475,1708360240110,-185.93705076,0.000389,2]
[314444477,1708360240120,-185.93705076,0.000389,2]
[314444479,1708360240129,-907.69,0.000389,3]
[314444481,1708360240138,-907.69,0.000389,3]
[314444483,1708360240148,-907.69,0.000389,3]
[314444485,1708360240157,-907.69,0.000389,3]
[314444487,1708360240167,-907.69,0.000389,3]
[314444489,1708360240176,-907.69,0.000389,3]
[314444491,1708360240186,-907.69,0.000389,3]
[314444493,1708360240195,-907.69,0.000389,3]
[314444495,1708360240205,-907.69,0.000389,3]
[314444497,1708360240215,-907.69,0.000389,3]
[314444499,1708360240224,-907.69,0.000389,3]
[314444502,1708360240234,-907.69,0.000389,3]
[314444504,1708360240243,-907.69,0.000389,3]
[314444506,1708360240253,-907.69,0.000389,3]
[314444509,1708360240262,-907.69,0.000389,3]
[314444512,1708360240271,-907.69,0.000389,3]
[314444515,1708360240280,-907.69,0.000389,3]
[314444517,1708360240290,-907.69,0.000389,3]
[314444519,1708360240299,-907.69,0.000389,3]
[314444521,1708360240308,-907.69,0.000389,3]
[314444523,1708360240318,-5197.15,0.000389,2]
[314444525,1708360240327,-152.54,0.000389,3]
[314444527,1708360240336,-152.54,0.000389,3]
[314444529,1708360240348,-152.54,0.000389,3]
[314444531,1708360240357,-185.93705076,0.00038901,2]
[314444533,1708360240368,-1119.29277373,0.00038939,2]
[314444536,1708360240377,-698.91061611,0.00038966,9]
[314444539,1708360240388,-185.93705076,0.00038976,2]
[314444542,1708360240397,-300.0,0.00039,7]
[314444546,1708360240407,-300.0,0.00039,40]
[314444549,1708360240416,-1200.43445229,0.00039,2]
[314444552,1708360240425,-156.85,0.00039037,2]
[314444555,1708360240434,-185.93705076,0.00039051,2]
[314444558,1708360240444,-150.0,0.000391,2]
[314444561,1708360240453,-387.25139276,0.0003911,8]
[314444564,1708360240462,-1770.09465458,0.0003911,8]
[314444566,1708360240471,-277.21357085,0.00039116,8]
[314444568,1708360240481,-296.06212997,0.00039122,8]
[314444570,1708360240491,-185.93705076,0.00039125,2]
[314444572,1708360240500,-1000.0,0.000392,2]
[314444574,1708360240509,-185.93705076,0.000392,2]
[314444576,1708360240519,-152.0,0.00039225,3]
[314444578,1708360240528,-150.03,0.0003926,2]
[314444580,1708360240538,-698.91061611,0.00039261,9]
[314444582,1708360240547,-185.93705076,0.00039275,2]
[314444584,1708360240558,-413.37,0.00039301,2]
[314444586,1708360240566,-1030.95220324,0.00039316,2]
[314444588,1708360240575,-3605.57289174,0.00039316,2]
[314444590,1708360240585,-553.94304737,0.00039316,2]
[314444592,1708360240594,-185.93705076,0.0003935,2]
[314444594,1708360240604,-150.0,0.00039366,2]
[314444596,1708360240613,-4408.26656,0.000394,2]
[314444598,1708360240625,-1034.29039876,0.00039413,2]
[314444600,1708360240636,-45763.0783,0.00039413,2]
[314444602,1708360240646,-853.5885,0.00039416,2]
[314444604,1708360240655,-185.93705076,0.00039425,2]
[314444607,1708360240665,-152.35,0.00039452,2]
[314444609,1708360240674,-150.0,0.00039452,2]
[314444611,1708360240683,-150.0,0.00039452,2]
[314444613,1708360240693,-150.0,0.00039452,2]
[314444615,1708360240702,-150.0,0.00039452,2]
[314444617,1708360240712,-150.0,0.00039452,2]
[314444619,1708360240721,-150.0,0.00039452,2]
[314444621,1708360240731,-150.0,0.00039452,2]
[314444623,1708360240741,-1150.45869317,0.00039492,2]
[314444625,1708360240750,-185.93705076,0.000395,2]
[314444627,1708360240759,-156.85,0.00039513,2]
[314444629,1708360240768,-1255.0,0.00039514,2]
[314444631,1708360240778,-274.794,0.00039514,2]
[314444633,1708360240787,-1948.0,0.00039514,2]
[314444635,1708360240796,-598.0,0.00039514,2]
[314444636,1708360240805,-1231.0,0.00039514,2]
[314444637,1708360240814,-276.0,0.00039514,2]
[314444638,1708360240824,-858.0,0.00039514,2]
[314444639,1708360240833,-429.0,0.00039514,2]
[314444640,1708360240843,-1005.0,0.00039514,2]
[314444641,1708360240852,-2887.0,0.00039514,2]
[314444642,1708360240862,-321.0,0.00039514,2]
[314444643,1708360240872,-337.0,0.00039514,2]
[314444644,1708360240885,-1138.0,0.00039514,2]
[314444645,1708360240895,-150.0,0.00039514,2]
[314444646,1708360240904,-308.434,0.00039514,2]
[314444647,1708360240913,-454.0,0.00039514,2]
[314444648,1708360240923,-19865.0,0.00039514,2]
[314444649,1708360240933,-2691.0,0.00039514,2]
[314444650,1708360240944,-4732.822,0.00039514,2]
[314444651,1708360240954,-8171.0,0.00039514,2]
[314444652,1708360240963,-2924.0,0.00039514,2]
[314444653,1708360240973,-2292.0,0.00039514,2]
[314444654,1708360240982,-4102.0,0.00039514,2]
[314444655,1708360240992,-1867.0,0.00039514,2]
[314444656,1708360241001,-164.177,0.00039514,2]
[314444657,1708360241011,-698.91061611,0.00039556,9]
[314444658,1708360241020,-185.93705076,0.00039575,2]
[314444659,1708360241030,-1000.0,0.00039599,2]
[314444660,1708360241039,-800.0,0.00039629,5]
[314444661,1708360241049,-185.93705076,0.0003965,2]
[314444662,1708360241058,-668.89192902,0.0003968,12]
[314444663,1708360241067,-178.0274411,0.0003968,2]
[314444664,1708360241077,-177.25733619,0.00039689,2]
[314444665,1708360241086,-153.01067069,0.00039689,5]
[314444666,1708360241096,-548.36818583,0.00039699,2]
[314444667,1708360241105,-5000.0,0.000397,2]
[314444668,1708360241115,-1000.0,0.000397,2]
[314444669,1708360241125,-3478.9092,0.000397,2]
[314444670,1708360241134,-3856.02617932,0.000397,13]
[314444671,1708360241143,-210.0,0.000397,2]
[314444672,1708360241154,-1030.95220323,0.00039714,2]
[314444673,1708360241163,-3605.57289169,0.00039714,2]
[314444674,1708360241172,-185.93705076,0.00039725,2]
[314444675,1708360241181,-182.18,0.00039726,2]
[314444676,1708360241190,-220.45298215,0.00039751,2]
[314444677,1708360241200,-1000.0,0.00039753,3]
[314444678,1708360241209,-1127.02913656,0.00039753,3]
[314444679,1708360241218,-82603.2803719,0.0003976,5]
[314444680,1708360241228,-3856.02617922,0.00039767,13]
[314444681,1708360241237,-5000.0,0.0003977,3]
[314444682,1708360241246,-82603.2803719,0.00039771,5]
[314444683,1708360241255,-36487.0756573,0.00039781,7]
[314444684,1708360241265,-212604.499533,0.00039781,7]
[314444685,1708360241274,-340.22828287,0.00039789,30]
[314444686,1708360241284,-172.78627761,0.0003979,2]
[314444687,1708360241293,-247809.841116,0.0003979,6]
[314444688,1708360241302,-162.65011872,0.00039798,31]
[314444689,1708360241311,-74168.29469035,0.00039799,2]
[314444690,1708360241321,-100000.0,0.000398,2]
[314444691,1708360241330,-15049.6553,0.000398,2]
[314444692,1708360241340,-354.3976,0.000398,2]
[314444693,1708360241349,-542.5773,0.000398,2]
[314444694,1708360241359,-221335.3142,0.000398,2]
[314444695,1708360241369,-1413.679,0.000398,2]
[314444696,1708360241378,-1386.4297,0.000398,2]
[314444697,1708360241389,-1673.1269,0.000398,2]
[314444698,1708360241399,-4684.0605,0.000398,2]
[314444699,1708360241408,-1124.845011,0.000398,17]
[314444705,1708360241597,-166.77873039,0.000398,2]
[314444706,1708360241607,-1069.84694363,0.000398,2]
[314444707,1708360241618,-3244.57082142,0.000398,2]
[314444708,1708360241627,-185.93705076,0.000398,2]
[314444709,1708360241637,-178.0274411,0.000398,2]
[314444710,1708360241657,-949.4328407,0.000398,2]
[314444711,1708360241668,-158.0,0.00039815,7]
[314444712,1708360241678,-1000.0,0.0003982,17]
[314444713,1708360241688,-205.0,0.00039834,2]
[314444714,1708360241698,-208.0,0.00039834,2]
[314444715,1708360241708,-3856.02617922,0.00039835,13]
[314444716,1708360241717,-1000.0,0.0003984,17]
[314444717,1708360241727,-698.91061611,0.00039851,9]
[314444718,1708360241737,-1000.0,0.0003986,17]
[314444719,1708360241748,-200.0,0.00039876,5]
[314444720,1708360241758,-200.0,0.00039876,3]
[314444721,1708360241767,-200.0,0.00039876,4]
[314444722,1708360241777,-300.0,0.0003988,2]
[314444723,1708360241787,-300.0,0.0003988,2]
[314444724,1708360241797,-300.0,0.0003988,2]
[314444725,1708360241806,-300.0,0.0003988,2]
[314444726,1708360241816,-300.0,0.0003988,2]
[314444727,1708360241825,-300.0,0.0003988,2]
[314444728,1708360241835,-300.0,0.0003988,2]
[314444729,1708360241845,-1000.0,0.0003988,17]
[314444730,1708360241855,-165206.560744,0.0003989,6]
[314444731,1708360241865,-151.0,0.0003989,14]
[314444732,1708360241874,-194.457587,0.0003989,14]
[314444733,1708360241883,-151.0,0.0003989,14]
[314444734,1708360241893,-1694.787059,0.0003989,14]
[314444735,1708360241903,-1694.787059,0.0003989,14]
[314444736,1708360241912,-603.212313,0.0003989,14]
[314444737,1708360241922,-603.212313,0.0003989,14]
[314444738,1708360241931,-999.912961,0.0003989,14]
[314444739,1708360241941,-999.912961,0.0003989,14]
[314444740,1708360241950,-196.455857,0.0003989,14]
[314444741,1708360241960,-196.455857,0.0003989,14]
[314444742,1708360241969,-275.634485,0.0003989,14]
[314444743,1708360241980,-151.0,0.0003989,14]
[314444744,1708360241989,-275.634485,0.0003989,14]
[314444745,1708360241999,-301.489201,0.0003989,2]
[314444746,1708360242008,-301.489201,0.0003989,2]
[314444747,1708360242018,-151.0,0.0003989,14]
[314444748,1708360242027,-82603.2803719,0.0003989,6]
[314444749,1708360242037,-151.0,0.0003989,14]
[314444750,1708360242046,-5821.581418,0.0003989,14]